[Event "Titled Tuesday Blitz November 14 Early 2023"]
[White "Parkhov, Yair"]
[Black "LeoWin2012"]
[WhiteFideId "2813408"]
[WhiteElo "2631"]
[BlackElo "2307"]
[Result "1-0"]
[Round "1"]
[TimeControl "180+1"]
[Date "2023.11.14"]
[WhiteClock "0:00:40"]
[BlackClock "0:00:06"]
[Board "176"]

1. d4 {[%clk 0:03:00]}  Nf6 {[%clk 0:02:58]} 2. c4 {[%clk 0:03:00]}  g6 {[%clk 0:02:57]} 3. Nc3 {[%clk 0:03:01]}  d5 {[%clk 0:02:56]} 4. cxd5 {[%clk 0:02:55]}  Nxd5 {[%clk 0:02:57]} 5. e3 {[%clk 0:02:50]}  Bg7 {[%clk 0:02:54]} 6. Nxd5 {[%clk 0:02:51]}  Qxd5 {[%clk 0:02:53]} 7. Ne2 {[%clk 0:02:51]}  O-O {[%clk 0:02:49]} 8. Nc3 {[%clk 0:02:52]}  Qd8 {[%clk 0:02:48]} 9. Bc4 {[%clk 0:02:47]}  c6 {[%clk 0:02:48]} 10. O-O {[%clk 0:02:46]}  Nd7 {[%clk 0:02:47]} 11. f4 {[%clk 0:02:41]}  Nb6 {[%clk 0:02:47]} 12. Bb3 {[%clk 0:02:41]}  Bf5 {[%clk 0:02:38]} 13. Qe2 {[%clk 0:02:34]}  Qd7 {[%clk 0:02:35]} 14. Bd2 {[%clk 0:02:34]}  Rad8 {[%clk 0:02:30]} 15. Be1 {[%clk 0:02:31]}  Be6 {[%clk 0:02:21]} 16. Bxe6 {[%clk 0:02:20]}  Qxe6 {[%clk 0:02:22]} 17. Bh4 {[%clk 0:02:18]}  Nc4 {[%clk 0:02:08]} 18. Rfe1 {[%clk 0:01:57]}  Nxe3 {[%clk 0:02:07]} 19. Bf2 {[%clk 0:01:57]}  Nf5 {[%clk 0:01:40]} 20. Qxe6 {[%clk 0:01:57]}  fxe6 {[%clk 0:01:40]} 21. Rxe6 {[%clk 0:01:58]}  Bxd4 {[%clk 0:01:40]} 22. Rae1 {[%clk 0:01:58]}  Bxf2+ {[%clk 0:01:39]} 23. Kxf2 {[%clk 0:01:59]}  Rd2+ {[%clk 0:01:39]} 24. R6e2 {[%clk 0:01:56]}  Rfd8 {[%clk 0:01:15]} 25. g4 {[%clk 0:01:54]}  Ng7 {[%clk 0:01:12]} 26. Ne4 {[%clk 0:01:28]}  Rxe2+ {[%clk 0:01:08]} 27. Rxe2 {[%clk 0:01:29]}  Rd4 {[%clk 0:01:06]} 28. Ke3 {[%clk 0:01:26]}  Rb4 {[%clk 0:00:55]} 29. Rd2 {[%clk 0:01:23]}  Ne6 {[%clk 0:00:50]} 30. b3 {[%clk 0:01:18]}  a5 {[%clk 0:00:40]} 31. f5 {[%clk 0:01:17]}  Nc7 {[%clk 0:00:33]} 32. Rd8+ {[%clk 0:01:14]}  Kf7 {[%clk 0:00:31]} 33. Ng5+ {[%clk 0:01:12]}  Kg7 {[%clk 0:00:30]} 34. Kf3 {[%clk 0:01:05]}  h6 {[%clk 0:00:22]} 35. Ne4 {[%clk 0:01:01]}  Nd5 {[%clk 0:00:16]} 36. Ra8 {[%clk 0:00:52]}  Rd4 {[%clk 0:00:13]} 37. Rxa5 {[%clk 0:00:48]}  Rd3+ {[%clk 0:00:13]} 38. Kf2 {[%clk 0:00:46]}  gxf5 {[%clk 0:00:12]} 39. gxf5 {[%clk 0:00:47]}  Re3 {[%clk 0:00:11]} 40. Ng3 {[%clk 0:00:47]}  Rc3 {[%clk 0:00:09]} 41. Ne4 {[%clk 0:00:45]}  Rc2+ {[%clk 0:00:09]} 42. Kg3 {[%clk 0:00:44]}  Ne3 {[%clk 0:00:09]} 43. Re5 {[%clk 0:00:43]}  Nd5 {[%clk 0:00:09]} 44. Re6 {[%clk 0:00:42]}  Rxa2 {[%clk 0:00:08]} 45. Rg6+ {[%clk 0:00:40]}  Kf7 {[%clk 0:00:08]} 46. Rxh6 {[%clk 0:00:40]}  Ra3 {[%clk 0:00:08]} 47. Ng5+ {[%clk 0:00:39]}  Kg7 {[%clk 0:00:08]} 48. Rg6+ {[%clk 0:00:38]}  Kf8 {[%clk 0:00:08]} 49. Ne6+ {[%clk 0:00:38]}  Kf7 {[%clk 0:00:07]} 50. Rg7+ {[%clk 0:00:38]}  Kf6 {[%clk 0:00:07]} 51. Rg6+ {[%clk 0:00:38]}  Kxf5 {[%clk 0:00:07]} 52. Rh6 {[%clk 0:00:39]}  Rxb3+ {[%clk 0:00:07]} 53. Kh4 {[%clk 0:00:39]}  Nf4 {[%clk 0:00:05]} 54. Nd4+ {[%clk 0:00:39]}  Ke4 {[%clk 0:00:04]} 55. Nxb3 {[%clk 0:00:40]}  Ng2+ {[%clk 0:00:04]} 56. Kg3 {[%clk 0:00:40]}  Nf4 {[%clk 0:00:04]} 57. Rh4 {[%clk 0:00:40]}  e5 {[%clk 0:00:04]} 58. Nd2+ {[%clk 0:00:39]}  Kd3 {[%clk 0:00:05]} 59. Nf3 {[%clk 0:00:37]}  Ne2+ {[%clk 0:00:05]} 60. Kf2 {[%clk 0:00:37]}  e4 {[%clk 0:00:05]} 61. Ne5+ {[%clk 0:00:37]}  Kd2 {[%clk 0:00:05]} 62. Rxe4 {[%clk 0:00:37]}  Nc3 {[%clk 0:00:05]} 63. Nf3+ {[%clk 0:00:37]}  Kc2 {[%clk 0:00:05]} 64. Rc4 {[%clk 0:00:37]}  Kb3 {[%clk 0:00:04]} 65. Rxc3+ {[%clk 0:00:35]}  Kxc3 {[%clk 0:00:04]} 66. h4 {[%clk 0:00:36]}  b5 {[%clk 0:00:04]} 67. h5 {[%clk 0:00:36]}  b4 {[%clk 0:00:05]} 68. h6 {[%clk 0:00:37]}  b3 {[%clk 0:00:05]} 69. h7 {[%clk 0:00:38]}  b2 {[%clk 0:00:05]} 70. h8=Q+ {[%clk 0:00:39]}  Kb3 {[%clk 0:00:05]} 71. Qh7 {[%clk 0:00:39]}  Ka2 {[%clk 0:00:05]} 72. Nd2 {[%clk 0:00:40]}  c5 {[%clk 0:00:06]} 73. Qa7# {[%clk 0:00:40]} 1-0


[Site "https://www.chess.com"]

[Event "Titled Tuesday Blitz November 14 Early 2023"]
[White "Pumpkin_in_moonlight"]
[Black "StiffMaster1"]
[WhiteElo "2305"]
[BlackElo "2629"]
[Result "0-1"]
[Round "1"]
[TimeControl "180+1"]
[Date "2023.11.14"]
[WhiteClock "0:00:00"]
[BlackClock "0:01:02"]
[Board "177"]

1. e4 {[%clk 0:02:59]}  e5 {[%clk 0:02:29]} 2. Nf3 {[%clk 0:02:58]}  Nc6 {[%clk 0:02:30]} 3. Nc3 {[%clk 0:02:55]}  Nf6 {[%clk 0:02:30]} 4. d4 {[%clk 0:02:51]}  exd4 {[%clk 0:02:31]} 5. Nxd4 {[%clk 0:02:51]}  Bb4 {[%clk 0:02:32]} 6. Nxc6 {[%clk 0:02:49]}  bxc6 {[%clk 0:02:32]} 7. Bd3 {[%clk 0:02:48]}  d5 {[%clk 0:02:32]} 8. exd5 {[%clk 0:02:43]}  O-O {[%clk 0:02:32]} 9. O-O {[%clk 0:02:42]}  cxd5 {[%clk 0:02:32]} 10. Bg5 {[%clk 0:02:40]}  c6 {[%clk 0:02:32]} 11. h3 {[%clk 0:02:31]}  Rb8 {[%clk 0:02:32]} 12. Qf3 {[%clk 0:02:27]}  Bd6 {[%clk 0:02:32]} 13. Rab1 {[%clk 0:02:15]}  Be5 {[%clk 0:02:29]} 14. Rfe1 {[%clk 0:01:56]}  Bd4 {[%clk 0:02:20]} 15. Ne2 {[%clk 0:01:44]}  Bb6 {[%clk 0:02:16]} 16. Ng3 {[%clk 0:01:41]}  h6 {[%clk 0:02:16]} 17. Bxf6 {[%clk 0:01:17]}  Qxf6 {[%clk 0:02:17]} 18. Qxf6 {[%clk 0:01:16]}  gxf6 {[%clk 0:02:18]} 19. Bf5 {[%clk 0:01:10]}  Bd4 {[%clk 0:02:15]} 20. Bxc8 {[%clk 0:01:01]}  Rfxc8 {[%clk 0:02:16]} 21. Nf5 {[%clk 0:00:59]}  Bc5 {[%clk 0:02:10]} 22. Nxh6+ {[%clk 0:00:59]}  Kg7 {[%clk 0:02:10]} 23. Nf5+ {[%clk 0:00:58]}  Kg6 {[%clk 0:02:11]} 24. g4 {[%clk 0:00:58]}  Kg5 {[%clk 0:02:10]} 25. Kg2 {[%clk 0:00:56]}  Kf4 {[%clk 0:02:05]} 26. c3 {[%clk 0:00:47]}  a5 {[%clk 0:02:03]} 27. a4 {[%clk 0:00:44]}  Re8 {[%clk 0:01:59]} 28. Ng3 {[%clk 0:00:31]}  Rxe1 {[%clk 0:01:57]} 29. Rxe1 {[%clk 0:00:30]}  Rxb2 {[%clk 0:01:58]} 30. Re2 {[%clk 0:00:28]}  Rb3 {[%clk 0:01:54]} 31. Nh5+ {[%clk 0:00:26]}  Kg5 {[%clk 0:01:53]} 32. f4+ {[%clk 0:00:20]}  Kg6 {[%clk 0:01:45]} 33. h4 {[%clk 0:00:20]}  f5 {[%clk 0:01:44]} 34. Ng3 {[%clk 0:00:15]}  fxg4 {[%clk 0:01:44]} 35. h5+ {[%clk 0:00:15]}  Kh6 {[%clk 0:01:42]} 36. Re5 {[%clk 0:00:08]}  Rxc3 {[%clk 0:01:40]} 37. Nf5+ {[%clk 0:00:08]}  Kxh5 {[%clk 0:01:37]} 38. Ne7+ {[%clk 0:00:04]}  Kh4 {[%clk 0:01:34]} 39. Nf5+ {[%clk 0:00:04]}  Kh5 {[%clk 0:01:30]} 40. Ne3+ {[%clk 0:00:04]}  Kg6 {[%clk 0:01:28]} 41. Nxg4 {[%clk 0:00:04]}  f6 {[%clk 0:01:18]} 42. Re8 {[%clk 0:00:04]}  Kf5 {[%clk 0:01:18]} 43. Nh6+ {[%clk 0:00:04]}  Kxf4 {[%clk 0:01:15]} 44. Ng8 {[%clk 0:00:04]}  Rc2+ {[%clk 0:01:13]} 45. Kh3 {[%clk 0:00:04]}  Bd4 {[%clk 0:01:14]} 46. Ne7 {[%clk 0:00:04]}  Be5 {[%clk 0:01:12]} 47. Ng6+ {[%clk 0:00:04]}  Kf5 {[%clk 0:01:13]} 48. Nh4+ {[%clk 0:00:04]}  Ke4 {[%clk 0:01:11]} 49. Rg8 {[%clk 0:00:02]}  d4 {[%clk 0:01:11]} 50. Rg4+ {[%clk 0:00:02]}  Kd5 {[%clk 0:01:11]} 51. Rg1 {[%clk 0:00:01]}  Rh2+ {[%clk 0:01:08]} 52. Kg4 {[%clk 0:00:01]}  c5 {[%clk 0:01:07]} 53. Nf5 {[%clk 0:00:02]}  c4 {[%clk 0:01:06]} 54. Ne7+ {[%clk 0:00:02]}  Kc5 {[%clk 0:01:05]} 55. Ng6 {[%clk 0:00:02]}  c3 {[%clk 0:01:05]} 56. Kf5 {[%clk 0:00:02]}  d3 {[%clk 0:01:02]} 57. Ke4 {[%clk 0:00:02]}  Kc4 {[%clk 0:01:01]} 58. Nxe5+ {[%clk 0:00:00]}  fxe5 {[%clk 0:01:02]} 0-1


[Site "https://www.chess.com"]

[Event "Titled Tuesday Blitz November 14 Early 2023"]
[White "Fromm, Marius"]
[Black "Alexikov, Alexander"]
[WhiteFideId "12993190"]
[BlackFideId "14103958"]
[WhiteElo "2625"]
[BlackElo "2298"]
[Result "1-0"]
[Round "1"]
[TimeControl "180+1"]
[Date "2023.11.14"]
[WhiteClock "0:00:54"]
[BlackClock "0:00:27"]
[Board "180"]

1. e4 {[%clk 0:03:00]}  c5 {[%clk 0:02:58]} 2. Nf3 {[%clk 0:03:00]}  d6 {[%clk 0:02:58]} 3. d4 {[%clk 0:03:00]}  Nf6 {[%clk 0:02:59]} 4. Nc3 {[%clk 0:03:00]}  cxd4 {[%clk 0:02:58]} 5. Nxd4 {[%clk 0:03:00]}  a6 {[%clk 0:02:58]} 6. g3 {[%clk 0:03:00]}  b5 {[%clk 0:02:54]} 7. Bg2 {[%clk 0:02:59]}  Bb7 {[%clk 0:02:54]} 8. O-O {[%clk 0:02:59]}  Nbd7 {[%clk 0:02:50]} 9. Re1 {[%clk 0:02:53]}  e6 {[%clk 0:02:43]} 10. a4 {[%clk 0:02:06]}  b4 {[%clk 0:02:36]} 11. Nd5 {[%clk 0:02:01]}  Qa5 {[%clk 0:02:09]} 12. Nb3 {[%clk 0:01:36]}  Qd8 {[%clk 0:02:06]} 13. Nxb4 {[%clk 0:01:28]}  d5 {[%clk 0:01:59]} 14. Nxd5 {[%clk 0:01:26]}  Rc8 {[%clk 0:01:09]} 15. Bf4 {[%clk 0:01:10]}  Be7 {[%clk 0:00:31]} 16. Nxe7 {[%clk 0:01:07]}  Qxe7 {[%clk 0:00:31]} 17. Bd6 {[%clk 0:01:06]}  Qd8 {[%clk 0:00:27]} 18. a5 {[%clk 0:00:54]} 1-0


[Site "https://www.chess.com"]

[Event "Titled Tuesday Blitz November 14 Early 2023"]
[White "remyrushbrooke"]
[Black "FoxOnTheRun97"]
[WhiteElo "2282"]
[BlackElo "2620"]
[Result "0-1"]
[Round "1"]
[TimeControl "180+1"]
[Date "2023.11.14"]
[WhiteClock "0:02:40"]
[BlackClock "0:02:30"]
[Board "185"]

1. d4 {[%clk 0:03:00]}  Nf6 {[%clk 0:02:57]} 2. Nc3 {[%clk 0:03:01]}  d5 {[%clk 0:02:52]} 3. Bg5 {[%clk 0:03:01]}  h6 {[%clk 0:02:48]} 4. Bxf6 {[%clk 0:03:01]}  exf6 {[%clk 0:02:48]} 5. e3 {[%clk 0:02:57]}  g6 {[%clk 0:02:46]} 6. Bd3 {[%clk 0:02:54]}  c6 {[%clk 0:02:44]} 7. h4 {[%clk 0:02:54]}  h5 {[%clk 0:02:42]} 8. Nh3 {[%clk 0:02:52]}  Bd6 {[%clk 0:02:42]} 9. Qf3 {[%clk 0:02:51]}  Bg4 {[%clk 0:02:38]} 10. O-O-O {[%clk 0:02:41]}  Bxf3 {[%clk 0:02:30]} 11. gxf3 {[%clk 0:02:40]}  Nd7 {[%clk 0:02:30]} 0-1


[Site "https://www.chess.com"]

[Event "Titled Tuesday Blitz November 14 Early 2023"]
[White "Cardozo Munar, Carlos Eduardo"]
[Black "JuniorJumper"]
[WhiteFideId "4409477"]
[WhiteElo "2268"]
[BlackElo "2608"]
[Result "1/2-1/2"]
[Round "1"]
[TimeControl "180+1"]
[Date "2023.11.14"]
[WhiteClock "0:00:25"]
[BlackClock "0:00:06"]
[Board "191"]

1. d4 {[%clk 0:02:59]}  d5 {[%clk 0:02:59]} 2. c3 {[%clk 0:02:58]}  Nf6 {[%clk 0:02:53]} 3. Bg5 {[%clk 0:02:57]}  e6 {[%clk 0:02:53]} 4. Nd2 {[%clk 0:02:57]}  Be7 {[%clk 0:02:44]} 5. g3 {[%clk 0:02:54]}  O-O {[%clk 0:02:43]} 6. Bg2 {[%clk 0:02:54]}  h6 {[%clk 0:02:43]} 7. Bxf6 {[%clk 0:02:51]}  Bxf6 {[%clk 0:02:44]} 8. e4 {[%clk 0:02:51]}  c6 {[%clk 0:02:39]} 9. Ne2 {[%clk 0:02:49]}  e5 {[%clk 0:02:35]} 10. exd5 {[%clk 0:02:49]}  exd4 {[%clk 0:02:34]} 11. cxd4 {[%clk 0:02:35]}  cxd5 {[%clk 0:02:18]} 12. O-O {[%clk 0:02:35]}  Nc6 {[%clk 0:02:18]} 13. Nf4 {[%clk 0:02:32]}  Bxd4 {[%clk 0:02:12]} 14. Nxd5 {[%clk 0:02:31]}  Bxb2 {[%clk 0:02:12]} 15. Rb1 {[%clk 0:02:31]}  Bd4 {[%clk 0:01:58]} 16. Nb3 {[%clk 0:02:03]}  Be6 {[%clk 0:01:26]} 17. Nxd4 {[%clk 0:01:54]}  Bxd5 {[%clk 0:01:24]} 18. Bxd5 {[%clk 0:01:23]}  Qxd5 {[%clk 0:01:21]} 19. Nxc6 {[%clk 0:01:23]}  Qxc6 {[%clk 0:01:19]} 20. Qb3 {[%clk 0:01:18]}  b6 {[%clk 0:01:15]} 21. Rbc1 {[%clk 0:01:17]}  Qb7 {[%clk 0:01:11]} 22. a4 {[%clk 0:01:13]}  Qa6 {[%clk 0:01:06]} 23. Rc7 {[%clk 0:01:10]}  Qe2 {[%clk 0:00:47]} 24. Rd1 {[%clk 0:00:57]}  Qh5 {[%clk 0:00:10]} 25. Rdd7 {[%clk 0:00:54]}  Rad8 {[%clk 0:00:09]} 26. Rxa7 {[%clk 0:00:52]}  Rxd7 {[%clk 0:00:08]} 27. Rxd7 {[%clk 0:00:52]}  Qg4 {[%clk 0:00:07]} 28. Rd5 {[%clk 0:00:20]}  Re8 {[%clk 0:00:06]} 29. Rd1 {[%clk 0:00:18]}  Ra8 {[%clk 0:00:04]} 30. Rb1 {[%clk 0:00:18]}  Rxa4 {[%clk 0:00:04]} 31. Qxb6 {[%clk 0:00:18]}  Rd4 {[%clk 0:00:03]} 32. Re1 {[%clk 0:00:17]}  Re4 {[%clk 0:00:03]} 33. Rxe4 {[%clk 0:00:17]}  Qxe4 {[%clk 0:00:03]} 34. Qe3 {[%clk 0:00:18]}  Qxe3 {[%clk 0:00:03]} 35. fxe3 {[%clk 0:00:19]}  Kf8 {[%clk 0:00:04]} 36. Kf2 {[%clk 0:00:20]}  Ke7 {[%clk 0:00:05]} 37. Kf3 {[%clk 0:00:20]}  Ke6 {[%clk 0:00:06]} 38. e4 {[%clk 0:00:21]}  Ke5 {[%clk 0:00:06]} 39. Ke3 {[%clk 0:00:21]}  f6 {[%clk 0:00:07]} 40. g4 {[%clk 0:00:22]}  g6 {[%clk 0:00:07]} 41. h3 {[%clk 0:00:22]}  h5 {[%clk 0:00:08]} 42. gxh5 {[%clk 0:00:22]}  gxh5 {[%clk 0:00:09]} 43. h4 {[%clk 0:00:23]}  f5 {[%clk 0:00:09]} 44. exf5 {[%clk 0:00:23]}  Kxf5 {[%clk 0:00:10]} 45. Kf3 {[%clk 0:00:24]}  Ke5 {[%clk 0:00:10]} 46. Ke3 {[%clk 0:00:24]}  Kf5 {[%clk 0:00:11]} 47. Kf3 {[%clk 0:00:25]}  Kg6 {[%clk 0:00:08]} 48. Ke4 {[%clk 0:00:24]}  Kf6 {[%clk 0:00:08]} 49. Kf4 {[%clk 0:00:24]}  Kg6 {[%clk 0:00:09]} 50. Ke5 {[%clk 0:00:24]}  Kf7 {[%clk 0:00:09]} 51. Kf5 {[%clk 0:00:25]}  Kg7 {[%clk 0:00:10]} 52. Kg5 {[%clk 0:00:25]}  Kh7 {[%clk 0:00:11]} 53. Kxh5 {[%clk 0:00:25]}  Kg7 {[%clk 0:00:06]} 1/2-1/2


[Site "https://www.chess.com"]

[Event "Titled Tuesday Blitz November 14 Early 2023"]
[White "GatoRojo150"]
[Black "alfianasybullina"]
[WhiteElo "2607"]
[BlackElo "2263"]
[Result "1-0"]
[Round "1"]
[TimeControl "180+1"]
[Date "2023.11.14"]
[WhiteClock "0:00:54"]
[BlackClock "0:00:05"]
[Board "194"]

1. e4 {[%clk 0:03:00]}  e6 {[%clk 0:02:57]} 2. d4 {[%clk 0:03:00]}  d5 {[%clk 0:02:58]} 3. Nc3 {[%clk 0:03:00]}  Bb4 {[%clk 0:02:53]} 4. e5 {[%clk 0:03:00]}  c5 {[%clk 0:02:53]} 5. a3 {[%clk 0:03:01]}  Bxc3+ {[%clk 0:02:53]} 6. bxc3 {[%clk 0:03:02]}  Nc6 {[%clk 0:02:50]} 7. a4 {[%clk 0:02:59]}  Qa5 {[%clk 0:02:45]} 8. Nf3 {[%clk 0:02:54]}  cxd4 {[%clk 0:02:41]} 9. Bd3 {[%clk 0:02:45]}  Nge7 {[%clk 0:02:38]} 10. O-O {[%clk 0:02:42]}  dxc3 {[%clk 0:02:37]} 11. Ba3 {[%clk 0:02:42]}  Bd7 {[%clk 0:02:37]} 12. Re1 {[%clk 0:02:38]}  Ng6 {[%clk 0:02:21]} 13. Bd6 {[%clk 0:02:34]}  Rc8 {[%clk 0:02:17]} 14. h4 {[%clk 0:02:33]}  Nf4 {[%clk 0:02:14]} 15. Bb5 {[%clk 0:02:24]}  a6 {[%clk 0:02:10]} 16. Bf1 {[%clk 0:02:19]}  Ne7 {[%clk 0:01:55]} 17. Qd4 {[%clk 0:02:15]}  Nfg6 {[%clk 0:01:51]} 18. h5 {[%clk 0:02:12]}  Nf5 {[%clk 0:01:51]} 19. Qg4 {[%clk 0:02:11]}  Nf8 {[%clk 0:01:40]} 20. Bd3 {[%clk 0:02:07]}  g6 {[%clk 0:01:36]} 21. Bxf5 {[%clk 0:02:06]}  exf5 {[%clk 0:01:36]} 22. Qh4 {[%clk 0:01:52]}  Qd8 {[%clk 0:01:34]} 23. Qd4 {[%clk 0:01:51]}  Be6 {[%clk 0:01:29]} 24. Rab1 {[%clk 0:01:48]}  b5 {[%clk 0:00:53]} 25. axb5 {[%clk 0:01:47]}  axb5 {[%clk 0:00:43]} 26. Rxb5 {[%clk 0:01:48]}  Nd7 {[%clk 0:00:42]} 27. Rb7 {[%clk 0:01:44]}  Qa5 {[%clk 0:00:41]} 28. Qh4 {[%clk 0:01:40]}  Qd8 {[%clk 0:00:40]} 29. Qa4 {[%clk 0:01:37]}  Ra8 {[%clk 0:00:18]} 30. Qb4 {[%clk 0:01:33]}  Qa5 {[%clk 0:00:15]} 31. Qh4 {[%clk 0:01:32]}  Qd8 {[%clk 0:00:15]} 32. Qd4 {[%clk 0:01:33]}  Rc8 {[%clk 0:00:14]} 33. Reb1 {[%clk 0:01:32]}  Qa5 {[%clk 0:00:13]} 34. Qh4 {[%clk 0:01:28]}  Qd8 {[%clk 0:00:13]} 35. Qa4 {[%clk 0:01:27]}  Ra8 {[%clk 0:00:13]} 36. Qb3 {[%clk 0:01:25]}  Rc8 {[%clk 0:00:12]} 37. Nd4 {[%clk 0:01:22]}  Qa5 {[%clk 0:00:12]} 38. h6 {[%clk 0:01:11]}  Nc5 {[%clk 0:00:08]} 39. Re7+ {[%clk 0:01:07]}  Kd8 {[%clk 0:00:09]} 40. Qb6+ {[%clk 0:00:56]}  Qxb6 {[%clk 0:00:08]} 41. Rxb6 {[%clk 0:00:57]}  Nd7 {[%clk 0:00:06]} 42. Nc6+ {[%clk 0:00:53]}  Rxc6 {[%clk 0:00:05]} 43. Rxc6 {[%clk 0:00:54]}  Re8 {[%clk 0:00:05]} 44. Rxe8+ {[%clk 0:00:53]}  Kxe8 {[%clk 0:00:05]} 45. Rc8# {[%clk 0:00:54]} 1-0


[Site "https://www.chess.com"]

[Event "Titled Tuesday Blitz November 14 Early 2023"]
[White "Borsuk, Konstantin"]
[Black "Quirke, Jeffrey"]
[WhiteFideId "14113406"]
[BlackFideId "2013029"]
[WhiteElo "2602"]
[BlackElo "2258"]
[Result "1-0"]
[Round "1"]
[TimeControl "180+1"]
[Date "2023.11.14"]
[WhiteClock "0:00:40"]
[BlackClock "0:00:07"]
[Board "196"]

1. d4 {[%clk 0:02:58]}  Nf6 {[%clk 0:02:58]} 2. c4 {[%clk 0:02:59]}  g6 {[%clk 0:02:59]} 3. f3 {[%clk 0:02:58]}  Bg7 {[%clk 0:02:54]} 4. e4 {[%clk 0:02:58]}  d6 {[%clk 0:02:55]} 5. Nc3 {[%clk 0:02:58]}  O-O {[%clk 0:02:54]} 6. Be3 {[%clk 0:02:58]}  c6 {[%clk 0:02:53]} 7. Qd2 {[%clk 0:02:55]}  Nbd7 {[%clk 0:02:51]} 8. Nge2 {[%clk 0:02:52]}  a6 {[%clk 0:02:51]} 9. a3 {[%clk 0:02:43]}  b5 {[%clk 0:02:50]} 10. c5 {[%clk 0:02:41]}  Bb7 {[%clk 0:02:33]} 11. b4 {[%clk 0:02:31]}  a5 {[%clk 0:02:21]} 12. Rb1 {[%clk 0:02:27]}  axb4 {[%clk 0:02:19]} 13. axb4 {[%clk 0:02:28]}  e5 {[%clk 0:01:28]} 14. cxd6 {[%clk 0:02:03]}  exd4 {[%clk 0:01:25]} 15. Nxd4 {[%clk 0:01:58]}  Ne5 {[%clk 0:01:11]} 16. Nb3 {[%clk 0:01:56]}  Ne8 {[%clk 0:00:56]} 17. Bc5 {[%clk 0:01:52]}  Qh4+ {[%clk 0:00:40]} 18. Bf2 {[%clk 0:01:16]}  Qf6 {[%clk 0:00:38]} 19. f4 {[%clk 0:00:59]}  Nf3+ {[%clk 0:00:17]} 20. gxf3 {[%clk 0:00:58]}  Qxc3 {[%clk 0:00:18]} 21. e5 {[%clk 0:00:57]}  Qxd2+ {[%clk 0:00:16]} 22. Kxd2 {[%clk 0:00:54]}  f6 {[%clk 0:00:16]} 23. Nc5 {[%clk 0:00:43]}  Rb8 {[%clk 0:00:09]} 24. Nd7 {[%clk 0:00:41]}  fxe5 {[%clk 0:00:07]} 25. fxe5 {[%clk 0:00:40]} 1-0


[Site "https://www.chess.com"]

[Event "Titled Tuesday Blitz November 14 Early 2023"]
[White "Dodaro, Mattia"]
[Black "Karamsetty, Jeevan"]
[WhiteFideId "28583400"]
[BlackFideId "2025337"]
[WhiteElo "2253"]
[BlackElo "2602"]
[Result "0-1"]
[Round "1"]
[TimeControl "180+1"]
[Date "2023.11.14"]
[WhiteClock "0:00:00"]
[BlackClock "0:00:15"]
[Board "197"]

1. d4 {[%clk 0:02:58]}  g6 {[%clk 0:02:54]} 2. h4 {[%clk 0:02:57]}  Nf6 {[%clk 0:02:53]} 3. Nc3 {[%clk 0:02:56]}  d5 {[%clk 0:02:51]} 4. Bf4 {[%clk 0:02:56]}  a6 {[%clk 0:02:46]} 5. e3 {[%clk 0:02:52]}  Bg7 {[%clk 0:02:46]} 6. Be2 {[%clk 0:02:51]}  Nc6 {[%clk 0:02:42]} 7. h5 {[%clk 0:02:47]}  gxh5 {[%clk 0:02:34]} 8. Bxh5 {[%clk 0:02:46]}  Nxh5 {[%clk 0:02:33]} 9. Qxh5 {[%clk 0:02:47]}  Be6 {[%clk 0:02:33]} 10. O-O-O {[%clk 0:02:34]}  Qd7 {[%clk 0:02:33]} 11. Nf3 {[%clk 0:02:32]}  O-O-O {[%clk 0:02:31]} 12. Na4 {[%clk 0:02:18]}  Bg4 {[%clk 0:02:19]} 13. Qh4 {[%clk 0:02:04]}  Bf6 {[%clk 0:02:14]} 14. Qg3 {[%clk 0:02:00]}  Bxf3 {[%clk 0:01:58]} 15. Qxf3 {[%clk 0:02:01]}  Nb4 {[%clk 0:01:43]} 16. Nc5 {[%clk 0:01:55]}  Qb5 {[%clk 0:01:36]} 17. a3 {[%clk 0:01:54]}  Na2+ {[%clk 0:01:35]} 18. Kd2 {[%clk 0:01:50]}  Qxb2 {[%clk 0:01:33]} 19. Rb1 {[%clk 0:01:01]}  Qc3+ {[%clk 0:01:24]} 20. Kd1 {[%clk 0:01:01]}  Bxd4 {[%clk 0:00:36]} 21. exd4 {[%clk 0:00:45]}  Qxd4+ {[%clk 0:00:34]} 22. Nd3 {[%clk 0:00:46]}  Nc3+ {[%clk 0:00:34]} 23. Kd2 {[%clk 0:00:45]}  Nxb1+ {[%clk 0:00:25]} 24. Rxb1 {[%clk 0:00:44]}  Rhg8 {[%clk 0:00:17]} 25. Be5 {[%clk 0:00:39]}  Qa4 {[%clk 0:00:13]} 26. Nc5 {[%clk 0:00:35]}  Qa5+ {[%clk 0:00:12]} 27. Qc3 {[%clk 0:00:26]}  Qxc3+ {[%clk 0:00:12]} 28. Kxc3 {[%clk 0:00:26]}  b6 {[%clk 0:00:12]} 29. Nxa6 {[%clk 0:00:25]}  Rd7 {[%clk 0:00:09]} 30. Bg3 {[%clk 0:00:20]}  f6 {[%clk 0:00:07]} 31. a4 {[%clk 0:00:21]}  e5 {[%clk 0:00:06]} 32. a5 {[%clk 0:00:21]}  Kb7 {[%clk 0:00:06]} 33. Nb4 {[%clk 0:00:21]}  d4+ {[%clk 0:00:05]} 34. Kc4 {[%clk 0:00:20]}  c6 {[%clk 0:00:04]} 35. axb6 {[%clk 0:00:20]}  Kxb6 {[%clk 0:00:04]} 36. Nd3+ {[%clk 0:00:20]}  Kc7 {[%clk 0:00:04]} 37. Nc5 {[%clk 0:00:20]}  Re7 {[%clk 0:00:03]} 38. Rb7+ {[%clk 0:00:20]}  Kd6 {[%clk 0:00:03]} 39. Ne4+ {[%clk 0:00:17]}  Ke6 {[%clk 0:00:04]} 40. Nc5+ {[%clk 0:00:17]}  Kf7 {[%clk 0:00:04]} 41. Rb6 {[%clk 0:00:17]}  Rc8 {[%clk 0:00:04]} 42. Ne4 {[%clk 0:00:15]}  Rd7 {[%clk 0:00:04]} 43. Kc5 {[%clk 0:00:15]}  Rd5+ {[%clk 0:00:04]} 44. Kc4 {[%clk 0:00:15]}  Rd7 {[%clk 0:00:05]} 45. Bh4 {[%clk 0:00:15]}  f5 {[%clk 0:00:05]} 46. Ng5+ {[%clk 0:00:15]}  Kg6 {[%clk 0:00:05]} 47. Nf3 {[%clk 0:00:16]}  Kh5 {[%clk 0:00:05]} 48. Bg3 {[%clk 0:00:15]}  f4 {[%clk 0:00:05]} 49. Nxe5 {[%clk 0:00:14]}  fxg3 {[%clk 0:00:06]} 50. Nxd7 {[%clk 0:00:13]}  gxf2 {[%clk 0:00:06]} 51. Rb1 {[%clk 0:00:14]}  Kg4 {[%clk 0:00:07]} 52. Ne5+ {[%clk 0:00:12]}  Kg3 {[%clk 0:00:07]} 53. Nd3 {[%clk 0:00:06]}  Kxg2 {[%clk 0:00:08]} 54. Nxf2 {[%clk 0:00:05]}  Kxf2 {[%clk 0:00:09]} 55. Kxd4 {[%clk 0:00:06]}  Ke2 {[%clk 0:00:07]} 56. c4 {[%clk 0:00:06]}  c5+ {[%clk 0:00:07]} 57. Kd5 {[%clk 0:00:06]}  Kd3 {[%clk 0:00:08]} 58. Rd1+ {[%clk 0:00:06]}  Kc3 {[%clk 0:00:08]} 59. Rc1+ {[%clk 0:00:07]}  Kb4 {[%clk 0:00:08]} 60. Rb1+ {[%clk 0:00:07]}  Kc3 {[%clk 0:00:09]} 61. Rc1+ {[%clk 0:00:07]}  Kd2 {[%clk 0:00:10]} 62. Rh1 {[%clk 0:00:07]}  Kc3 {[%clk 0:00:09]} 63. Rh3+ {[%clk 0:00:07]}  Kb4 {[%clk 0:00:10]} 64. Rxh7 {[%clk 0:00:03]}  Rd8+ {[%clk 0:00:10]} 65. Ke4 {[%clk 0:00:01]}  Kxc4 {[%clk 0:00:11]} 66. Rh2 {[%clk 0:00:02]}  Rd1 {[%clk 0:00:11]} 67. Re2 {[%clk 0:00:02]}  Kc3 {[%clk 0:00:11]} 68. Ke3 {[%clk 0:00:03]}  c4 {[%clk 0:00:11]} 69. Ra2 {[%clk 0:00:03]}  Rd3+ {[%clk 0:00:11]} 70. Ke2 {[%clk 0:00:03]}  Rd5 {[%clk 0:00:11]} 71. Ra3+ {[%clk 0:00:04]}  Kb2 {[%clk 0:00:11]} 72. Ra4 {[%clk 0:00:04]}  c3 {[%clk 0:00:12]} 73. Rb4+ {[%clk 0:00:04]}  Kc1 {[%clk 0:00:12]} 74. Rc4 {[%clk 0:00:05]}  c2 {[%clk 0:00:13]} 75. Ke1 {[%clk 0:00:03]}  Rd7 {[%clk 0:00:13]} 76. Ke2 {[%clk 0:00:04]}  Kb2 {[%clk 0:00:13]} 77. Rb4+ {[%clk 0:00:04]}  Kc3 {[%clk 0:00:14]} 78. Rb6 {[%clk 0:00:04]}  c1=Q {[%clk 0:00:14]} 79. Rc6+ {[%clk 0:00:05]}  Kb2 {[%clk 0:00:14]} 80. Rxc1 {[%clk 0:00:00]}  Kxc1 {[%clk 0:00:15]} 0-1


[Site "https://www.chess.com"]